Cogmind - Beta 16 @@@ ROGUE MODE // 2025.12.15 @ 01:08:52 Player: Dogchiho Result: Destroyed by G-34 Mercenary with Small Laser Performance ------------- Evolutions (0) 0 Regions Visited (1) 200 Robots Destroyed (23) 115 Value Destroyed (699) 699 Prototype IDs (0) 0 Alien Tech Used (0) 0 Bonus (0) 0 TOTAL SCORE: 1014 Bonus ------- None Cogmind --------- Core Integrity 0/250 Matter 290/300 Energy 24/100 System Corruption 1% Temperature Cool (6) Movement Walking (260) Ox2 Location -10/Materials Parts ------- > --- POWER (1) -------- (None) > --- PROPULSION (2) --- Aluminum Leg Aluminum Leg > --- UTILITY (2) ------ High-capacity Storage Unit Sensor Array > --- WEAPON (2) ------- Mining Laser > --- INVENTORY (20) --- Light Nuclear Core Aluminum Leg Wheel Compact Wheel Large Matter Pod (49) Grenade Launcher Peak State ------------ > --- POWER ------------ Light Nuclear Core > --- PROPULSION ------- Light Treads Light Treads > --- UTILITY ---------- Small Storage Unit Terrain Scanner > --- WEAPON ----------- Assault Rifle > --- INVENTORY -------- Ion Engine Aluminum Leg Aluminum Leg Wheel Compact Wheel EM Pulse Gun Small Laser Mining Laser [Rating: 8] Favorites ----------- Power Ion Engine Engine Ion Engine Power Core Light Nuclear Core Propulsion Aluminum Leg Treads Light Treads Leg Aluminum Leg Wheel Wheel Utility Small Storage Unit Device Sensor Array Storage Small Storage Unit Weapon Assault Rifle Energy Gun Small Laser Ballistic Gun Assault Rifle Special Weapon Welding Torch Build | -11 -10 ------- Run | Yrd Mat Slots Evolved . | . . Power . | . . Propulsion . | . . Utility . | . . Weapon . | . . Parts Attached 22 | 6 16 Power 3 | 1 2 Engine 2 | 1 1 Core 1 | . 1 Reactor . | . . Propulsion 7 | 2 5 Treads 2 | 2 . Leg 4 | . 4 Wheel 1 | . 1 Hover . | . . Flight . | . . Utility 4 | 1 3 Device 2 | . 2 Storage 2 | 1 1 Processor . | . . Hackware . | . . Protection . | . . Artifact . | . . Weapon 8 | 2 6 Energy Gun 4 | . 4 Energy Cannon . | . . Ballistic Gun 2 | 2 . Ballistic Cannon . | . . Launcher . | . . Special Weapon 2 | . 2 Impact Weapon . | . . Slashing Weapon . | . . Piercing Weapon . | . . Special Melee Weapon . | . . Unidentified Prototypes . | . . Parts Lost 12 | . 12 Power 2 | . 2 Propulsion 2 | . 2 Utility 1 | . 1 Weapon 7 | . 7 Highest Loss Streak 2 | . 2 To Critical Strikes . | . . Average Backups 5 | 4 6 Power 1 | . 1 Propulsion 3 | 2 3 Utility . | . . Weapon 1 | 1 1 Tool/Special . | . . Unused Backups 5 | . 5 Power 2 | . 2 Propulsion 1 | . 1 Utility 1 | . 1 Weapon 1 | . 1 Tool/Special . | . . Average Slot Usage (%) 82 | . 82 Engine 5 | . 5 Treads 10 | . 10 Leg 15 | . 15 Device 10 | . 10 Storage 14 | . 14 Energy Gun 15 | . 15 Ballistic Gun 9 | . 9 Peak Build Rating 8 | 6 8 Average Rating 5 | 4 5 On Entrance 3 | . 6 Avg Prop Armor Cover (%) 10 | . 10 Naked Turns . | . . Heaviest Build 44 | 14 44 Greatest Support 40 | 40 40 Greatest Overweight (x) 4 | . 4 Average Overweight (x) . | . . Largest Inventory Capacity 20 | 8 20 Average Capacity 12 | 6 13 Most Carried 8 | 8 8 Average Carried 5 | 4 6 Final Capacity 20 | 8 20 Final Carried 8 | 8 6 Class Distribution -------------------- 100% | Mutant Dominant Class ---------------- Mutant | -10/Materials Resources | -11 -10 ----------- Run | Yrd Mat Matter Collected 722 | 200 522 Remotely . | . . Salvage Created 865 | 59 806 Parts 50 | 3 47 Haulers Intercepted . | . . Recyclers Shooed 1 | 1 . Parts Field Recycled . | . . Retrieved Matter . | . . Parts Self-Destructed . | . . Prevented . | . . Parts Restored . | . . Kills | -11 -10 ------- Run | Yrd Mat Combat Hostiles Destroyed 18 | . 18 Guns 16 | . 16 AOE 2 | . 2 Classes Destroyed 6 | 2 4 Worker 1 | . 1 Builder 1 | . 1 Tunneler 1 | 1 . Recycler 1 | 1 . Watcher 1 | . 1 Grunt 18 | . 18 Best Kill Streak 4 | 1 4 Combat Bots Only 4 | . 4 Max Kills in Single Turn 2 | 1 2 Gunslinging . | . . Exploded 2 | . 2 Melee . | . . Uniques/NPCs Destroyed . | . . Combat | -11 -10 -------- Run | Yrd Mat Hostile Shots Fired 133 | . 133 Missed 29 | . 29 Hits 104 | . 104 Projectile 104 | . 104 Critical Strikes 1 | . 1 Damage Taken 1438 | . 1438 Core 254 | . 254 Absorbed by Shields . | . . Core Remaining (%) 100 | 100 . Volleys Fired 92 | 11 81 Largest 2 | 2 2 Hottest 100 | 40 100 Shots Fired 158 | 22 136 Gun 154 | 22 132 Cannon . | . . Launcher . | . . Special 4 | . 4 Kinetic 103 | 22 81 Thermal 43 | . 43 Explosive . | . . Electromagnetic 12 | . 12 Robot Hit Streak 12 | 5 12 Robot Miss Streak 4 | 1 4 Penetration Max . | . . Secondary Targets 3 | . 3 Max Gunslinging Chain 1 | . 1 Shots Hit Robots 113 | 15 98 Core Hits 44 | 3 41 Critical Kills . | . . Critical Parts Destroyed . | . . Critical Strikes . | . . Melee Attacks . | . . Impact . | . . Slashing . | . . Piercing . | . . Sneak Attacks . | . . Combat Hostiles . | . . Follow-up Attacks . | . . Damage Inflicted 1486 | 190 1296 Guns 1347 | 190 1157 Cannons . | . . Explosions 111 | . 111 Melee . | . . Ramming 4 | . 4 Kinetic 930 | 190 740 Thermal 467 | . 467 Explosive . | . . Electromagnetic 85 | . 85 Impact . | . . Slashing . | . . Piercing . | . . Highest Corruption 1 | . 1 Average Corruption 1 | . 1 Corruption Purged . | . . Corruption Blocked . | . . Effects 3 | . 3 Heat Flow Errors 1 | . 1 Data Loss (minor) 1 | . 1 Alerts 1 | . 1 Overload Shots . | . . Overflow Damage . | . . Projectiles . | . . Explosions . | . . Melee . | . . Knockbacks . | . . Impact . | . . Kinetic . | . . Secondary . | . . Self-Inflicted Damage 42 | . 42 Shots 1 | . 1 Rammed 1 | 1 . Targets Rammed 2 | 1 1 Kicked 1 | . 1 Crushed . | . . Highest Temperature 148 | . 148 Average Temperature 41 | . 41 Received Heat Transfer 753 | . 753 Siege Activations . | . . Martial Activations . | . . Shielding Activations . | . . Robots Disrupted . | . . Combat Hostiles . | . . Robots Corrupted . | . . Combat Hostiles . | . . Parts Fried . | . . Impact Corruptions . | . . Robots Melted . | . . Combat Hostiles . | . . Parts Melted . | . . Heat Transferred 950 | . 950 Parts Sabotaged . | . . Parts Stolen . | . . Parts Stripped . | . . Power Chain Reactions 1 | . 1 Alert | -11 -10 ------- Run | Yrd Mat Maximum Alert Level . | . . Low Security (%) 100 | 100 100 Level 1 . | . . Level 2 . | . . Level 3 . | . . Level 4 . | . . Level 5 . | . . High Security . | . . Max Security . | . . Peak Influence 100 | 5 100 Initial . | . . Average 30 | . 36 Influence Increases 494 | 10 484 Destroy 0b10 Robot/C 360 | . 360 Destroy 0b10 Robot/NC 25 | 10 15 Destroy Leader 92 | . 92 Successful Hack 15 | . 15 Destroy Structure 2 | . 2 Influence Decreases 450 | 10 440 Time Decay 340 | 10 330 Lost Part 110 | . 110 Squads Dispatched 5 | . 5 Investigation 2 | . 2 Extermination . | . . Reinforcement 3 | . 3 Assault . | . . Garrison . | . . Intercept . | . . Searches Triggered . | . . Construction Impeded . | . . Haulers Reinforced . | . . Active Scanning Responses . | . . Cargo Convoy Interrupts . | . . Stealth | -11 -10 --------- Run | Yrd Mat Distress Signals 1 | . 1 Communications Jammed . | . . Distress Signals . | . . Times Spotted 22 | . 22 Peak Tracking Total 7 | . 7 Tactical Retreats . | . . Traps | -11 -10 ------- Run | Yrd Mat Traps Triggered 3 | . 3 Indirectly . | . . Trap Hack Attempts . | . . Triggered . | . . Disarmed . | . . Reprogrammed . | . . Reused . | . . Traps Extracted . | . . Installed . | . . Triggered . | . . Machines | -11 -10 ---------- Run | Yrd Mat Machines Disabled . | . . Max in Single Turn . | . . Machines Repaired . | . . Machines Dismantled . | . . Machines Sabotaged . | . . Overloaded Fab Kills . | . . Hacking | -11 -10 --------- Run | Yrd Mat Machines Accessed 3 | . 3 Terminals 3 | . 3 Fabricators . | . . Repair Stations . | . . Recycling Units . | . . Scanalyzers . | . . Garrison Access . | . . Total Hacks 12 | . 12 Successful 8 | . 8 Failed 2 | . 2 Catastrophic . | . . Database Lockouts 2 | . 2 Manual 11 | . 11 Terminals 12 | . 12 Fabricators . | . . Repair Stations . | . . Recycling Units . | . . Scanalyzers . | . . Garrison Access . | . . Terminal Hacks 8 | . 8 Record 3 | . 3 Robot Analysis 1 | . 1 Branch Access Points 1 | . 1 Alert Level 1 | . 1 Dispatch Records 1 | . 1 Transport Status 1 | . 1 Fabricator Hacks . | . . Repair Station Hacks . | . . Recycling Unit Hacks . | . . Scanalyzer . | . . Garrison Access Hacks . | . . Unauthorized Hacks . | . . Terminals . | . . Fabricators . | . . Repair Stations . | . . Recycling Units . | . . Scanalyzers . | . . Garrison Access . | . . Data Cores Recovered . | . . Used . | . . Hacking Detections 3 | . 3 Full Trace Events 2 | . 2 Feedback Events . | . . Feedback Blocked . | . . Robot Schematics Acquired . | . . Robots Built . | . . Authchips . | . . Time . | . . Total Robot Build Rating . | . . Part Schematics Acquired . | . . Parts Built . | . . Authchips . | . . Time . | . . Total Part Build Rating . | . . Part Studies Acquired . | . . Parts Repaired . | . . Time . | . . Parts Recycled . | . . Recycled Matter . | . . Retrieved Matter . | . . Retrieved Components . | . . Parts Scanalyzed . | . . Part Schematics Acquired . | . . Parts Damaged . | . . Bothacking | -11 -10 ------------ Run | Yrd Mat Used RIF Installer . | . . Robots Hacked . | . . Non-combat . | . . Combat . | . . Robot Hacks Applied . | . . Relay Couplers Released . | . . Fabnet Peak Effective % . | . . Robots Rewired . | . . Allies Hacked . | . . Hacks Repelled . | . . Allies | -11 -10 -------- Run | Yrd Mat Total Allies . | . . Largest Group . | . . Highest-Rated Group . | . . Highest-Rated Ally . | . . Total Orders . | . . Ally Attacks . | . . Total Damage . | . . Kills . | . . Allies Corrupted . | . . Allies Melted . | . . Intel | -11 -10 ------- Run | Yrd Mat Active Infowar (turns) 785 | . 785 Sensors 507 | . 507 Terrain 278 | . 278 Robot Analysis Total 1 | . 1 Derelict Logs Recovered . | . . Drone Launches . | . . Drone Recoveries . | . . Exploration | -11 -10 ------------- Run | Yrd Mat Turns Passed 1229 | 196 1033 Spaces Moved 445 | 107 338 Core 26 | 26 . Treads 232 | 81 151 Legs 170 | . 170 Wheels 17 | . 17 Hover . | . . Flight . | . . Fastest Speed 50 | 50 120 Average Speed 171 | 133 183 Slowest Speed 260 | 160 260 Overloaded Moves . | . . Propulsion Burnouts . | . . Robots Hopped . | . . Potential Cave-ins . | . . Cave-ins Triggered . | . . Exploration Rate (%) 30 | 7 54 Regions Visited 1 Branch Regions . Pre-discovered Areas . | . . Known Exits Taken . | . . Unknown Exits Taken 1 | 1 . Scrap Searched . | . . Spaces Dug . | . . Terrain Destroyed 3 | . 3 Melee . | . . Projectile . | . . AOE 3 | . 3 Terrain Rammed . | . . Walls Destroyed . | . . Machines Disabled . | . . Actions | -11 -10 --------- Run | Yrd Mat Total 752 | 138 614 Wait 160 | . 160 Move 444 | 106 338 Hop . | . . Pick Up 27 | 14 13 Fast Attach . | . . Attach 17 | 6 11 Detach . | . . Swap 6 | . 6 Drop 4 | . 4 Fire 92 | 11 81 Melee . | . . Ram . | . . Kick 1 | . 1 Crush 1 | 1 . Escape Stasis . | . . Rewire . | . . Trap . | . . Miscellaneous . | . . Route ------- -11/Scrapyard -10/Materials (discovered 4 exits: [*Mat x2] / *Min x2) History --------- Turn | Location | Event 18 | -11/Scrapyard | Discovered new exit (range 15) 197 | -11/Scrapyard | Entered Materials 260 | -10/Materials | Central database locked down 290 | -10/Materials | Discovered new exit (range 6) 301 | -10/Materials | Build established: Mutant 666 | -10/Materials | Discovered new exit (range 16) 683 | -10/Materials | Core integrity fell below 50% 748 | -10/Materials | Identified exit to Mines 939 | -10/Materials | Central database locked down 1034 | -10/Materials | Discovered new exit (range 12) 1198 | -10/Materials | Core integrity fell below 20% 1230 | -10/Materials | Destroyed by G-34 Mercenary with Small Laser Last Messages --------------- ALERT: Central database lockdown, local access denied. Acquired 16 matter. Kicked K-01 Serf. Acquired 2 matter. System corrupted: IFF burst signal emitted. Acquired Lrg. Matter Pod. EXIT=FOUND O-16 Technician: "IFF HANDSHAKE FAILED. SECURING TERMINAL." ALERT: Hostiles spotted, dispatching reinforcements to Terminal M007. Acquired Grenade Launcher. System corrupted: Heat flow error (+173). System corrupted: Component data lost. EM Pulse Gun destroyed. G-47 Trooper destroyed. G-34 Mercenary destroyed. Acquired 39 matter. Sml. Laser destroyed. Map ----- +----------------------------------------------------+ | ?????????????????? ?? ?# ### | | ???????????????????????# ##### | | ???????????????????????# ## | | ????????????????? ?????# ## " | | ???????????????????????# ## " | | ????????????????? ?????# ## " | | ?????????????#?????????# ## | | ???????????????????????# ## | | ????###########?????#??# ##### | | ????# #????????# #???? | | ????# #????????# #???# | | ????# #?######## ##### | | ????# ### % | | ????# + ##### | | ????# " "" ### #???? | | ????# "R"" #?# # #???? | | ????# """ #?# # #???? | | ????######+####?# #! !#???? | | ???????# #### ##!!!!##???? | | ???????# #######????? | | ???????# #??????????? | | ???????# #??????????? | | ???????# ########?????????#? | | ?######## ##?????????????????? | | ?# =# #??????????????????? | | ?# @# #??????????????????? | | ?# ""[g% #??????????????????? | | ?# T"=#^ #??????????????????? | | ?# "" # < #??????????????????? | | ?# # #??????????????????? | | ?############??????????????????? | | ???????????????????????????????? | | ???????????????????????????????? | | ???????????????????????????????? | | ???????????????????????????????? | | | | | | | | | | | | | | | | | | | | | | | | | | | | | | | +----------------------------------------------------+ Best States ------------- Heat Dissipation 25 Energy Generation 14 Energy Capacity 250 Matter Stores 300 Matter Capacity 300 Sight Range 16 Robot Scan Range 14 Terrain Scan Range 14 Terrain Scan Density 10 Evasion (%) 55 Recoil Reduction 2 Item Schematics ----------------- None Robot Schematics ------------------ None Fabricated ------------ Nothing Repaired ---------- Nothing Studied --------- None Alien Tech Used ----------------- None Achievements -------------- None Challenges ------------ None Game ------ Seed SuspensionHugeMiniperforator Manual? 0 Play Time 00:21:26 Cumulative 3.6 hours Start 2025.12.10 @ 23:56:06 End 2025.12.15 @ 01:08:52 Sessions 2 Manual Loads 0 Difficulty Rogue Special Mode None Game No. 8 Rogue 8 Adventurer 0 Explorer 0 Win Type - Total 0 Types 0/0/0/0/0/0/0/0/0/0 Lore% 3 Gallery% 5 Achievement% 6 Wizard Run 0 Options --------- Layout 1 ASCII 0 Keyboard 0 Movement Mouse Keybinds 0 Fullscreen 1 Font 24/X11 Map View 50x35 Zoom Use 0% Tactical HUD 0 Map Filters NONE Filters NONE Steam 1 RUN: a14afbce-07a0-45b9-b1ac-3561c5c60d3a